[Event "Fagernes GM Open Autumn 2024"]
[Site "Fagernes"]
[Date "2024.10.10"]
[Round "6.6"]
[White "Urkedal, Frode Olav Olsen"]
[Black "Sidhant, Mohapatra"]
[Result "1/2-1/2"]
[ECO "D32"]
[WhiteElo "2559"]
[BlackElo "2369"]
[Annotator "TA"]
[PlyCount "103"]
[EventDate "2024.10.03"]
[EventType "swiss"]
[EventCountry "NOR"]
[SourceTitle "playchess.com"]
[Source "ChessBase"]
[SourceQuality "1"]
[TimeControl "40/6000:2400+30"]

{[%evp 12,103,54,49,51,52,62,43,27,19,38,24,53,23,49,0,28,-47,-49,-98,-46,-34,-45,-51,27,-97,-106,-98,-27,-26,0,0,0,0,0,0,0,0,0,-8,0,0,0,0,0,0,0,0,0,0,0,0,0,0,0,0,0,0,0,0,0,0,0,0,0,0,0,0,0,0,0,0,0,0,0,0,0,0,0,0,0,0,0,0,0,0,0,0,0,0,0,0,0,0]} 1. d4 {[%emt 0:00:00]} d5 {[%emt 0:00:02]} 2. c4 {[%emt 0:00:00]} e6 {[%emt 0:00:17][%cal Be7e6,Be6d5,Bd5d4][%mdl 32]} 3. Nc3 {[%emt 0:00:00]} c5 {[%emt 0:00:00]} 4. cxd5 {[%emt 0:00:00]} exd5 {[%emt 0:00:00]} 5. Nf3 {[%emt 0:00:00]} Nc6 {[%emt 0:00:00]} 6. dxc5 {[%emt 0:00:00]} d4 {[%emt 0:00:06]} 7. Na4 {[%emt 0:00:00]} Bxc5 {[%emt 0:00:00]} 8. Nxc5 {[%emt 0:00:00]} Qa5+ {[%emt 0:00:00]} 9. Bd2 {[%emt 0:00:00]} Qxc5 {[%emt 0:00:00] [#] White is slightly better.} 10. b4 $1 {[%emt 0:00:38]} Qf5 {[%emt 0:01:59]} 11. Rc1 {[%emt 0:03:55]} Nge7 {[%emt 0:12:35]} 12. Rc5 {[%emt 0:02:46]} Qd7 {[%emt 0:00:00]} 13. Qa4 {[%emt 0:07:38]} (13. b5 $14 Nd8 14. e4) 13... b6 {[%emt 0:21:54]} 14. Rc4 {[%emt 0:08:01]} (14. Rc1 $11) 14... a6 $1 $15 {[%emt 0:02:32] ...b5 is the strong threat.} 15. Qc2 {[%emt 0:05:26] [#]} (15. Nxd4 $2 {perishes.} b5 16. Nxb5 axb5 17. Qxa8 bxc4 $19) (15. Qb3 $15 {might be stronger.}) 15... Bb7 {[%emt 0:07:25]} (15... Qd6 $1 $17 16. Qe4 Bf5) 16. e3 {[%emt 0:01:24]} b5 {[%emt 0:00:51]} 17. Rc5 {[%emt 0:00:00]} Rd8 {[%emt 0:00:00]} (17... dxe3 $15 18. fxe3 Nd8) 18. Nxd4 {[%emt 0:02:50]} (18. a4 $1 $11 bxa4 19. Bc4) 18... Nxd4 $17 {[%emt 0:00:00]} 19. exd4 {[%emt 0:00:00]} Qxd4 {[%emt 0:00:00]} (19... O-O $17 {[%cal Oe7c6] White must now prevent ...Nc6!} 20. Bd3 Ng6 (20... Qxd4 21. Bxh7+ Kh8 22. Rh5 $11) 21. Bxg6 hxg6) 20. Be2 $1 $11 {[%emt 0:08:07]} ({Of course not} 20. Bc3 Qf4 21. Bd2 Qd6 $17) 20... Nd5 {[%emt 0:08:35]} 21. O-O {[%emt 0:09:37] The position is equal.} O-O {[%emt 0:00:02]} 22. a3 {[%emt 0:05:32]} Nf4 {[%emt 0:00:00]} 23. Bxf4 {[%emt 0:01:53]} Qxf4 {[%emt 0:00:00]} 24. Rd1 {[%emt 0:00:00]} g6 {[%emt 0:01:07]} 25. Bf1 {[%emt 0:00:21]} Qg4 {[%emt 0:01:39]} 26. Re1 {[%emt 0:01:34]} Rfe8 {[%emt 0:00:56]} 27. Rxe8+ {[%emt 0:00:00]} Rxe8 {[%emt 0:00:00]} 28. Qd2 {[%emt 0:00:18]} Qe6 {[%emt 0:01:34]} 29. Rc7 {[%emt 0:01:10]} Bd5 {[%emt 0:00:00]} 30. h4 {[%emt 0:00:05][%cal Oh4h5]} h5 {[%emt 0:00:37]} 31. Rc5 {[%emt 0:10:00]} Bc4 {[%emt 0:00:11]} 32. Bxc4 {[%emt 0:00:00]} bxc4 {[%emt 0:00:00][%mdl 4096] Endgame. KQR-KQR} 33. Qd4 {[%emt 0:03:35]} Rc8 {[%emt 0:00:21]} 34. Kf1 {[%emt 0:01:24]} Rxc5 {[%emt 0:00:00]} 35. bxc5 {[%emt 0:01:03] KQ-KQ} Kf8 {[%emt 0:00:00]} 36. a4 {[%emt 0:02:08]} Ke8 {[%emt 0:00:00]} 37. f3 {[%emt 0:00:00]} Ke7 {[%emt 0:00:00]} 38. Kf2 {[%emt 0:00:00]} Ke8 {[%emt 0:00:00]} 39. g4 {[%emt 0:04:38]} hxg4 {[%emt 0:00:00]} 40. fxg4 {[%emt 0:00:00] Threatens to win with Qe3.} c3 {[%emt 0:00:00]} 41. Qxc3 {[%emt 0:41:05]} Qxg4 {[%emt 0:41:02]} 42. Qe5+ {[%emt 0:00:17]} Kd7 {[%emt 0:01:20]} 43. Qd5+ {[%emt 0:03:41]} Ke8 {[%emt 0:00:43]} 44. Qa8+ {[%emt 0:03:37]} Ke7 {[%emt 0:00:10]} 45. Qb7+ {[%emt 0:00:29]} Ke8 {[%emt 0:00:06]} 46. c6 {[%emt 0:03:16]} Qxh4+ {[%emt 0:06:31]} 47. Ke3 {[%emt 0:03:09]} Qe1+ {[%emt 0:00:15]} 48. Kd3 {[%emt 0:02:53] Hoping for Qd7+.} Qd1+ {[%emt 0:00:33]} 49. Kc3 {[%emt 0:00:58]} Qc1+ {[%emt 0:00:22]} 50. Kb4 {[%emt 0:00:18]} Qd2+ {[%emt 0:00:04]} 51. Kc5 {[%emt 0:00:21]} Qe3+ {[%emt 0:00:05]} 52. Kb4 {[%emt 0:01:12] Weighted Error Value: White=0.12 (very precise) /Black=0.10 (very precise) .  Mistake:       	White=4     	Black=3      Inaccurate:     	White=1     	Black=3      OK:         	White=22    	Black=21     Best:        	White=2     	Black=3      Strong:       	White=1     	Black=1} 1/2-1/2

[Event "Fagernes GM Open Autumn 2024"]
[Site "Fagernes"]
[Date "2024.10.10"]
[Round "6.7"]
[White "Oksendal, Martin"]
[Black "Blomqvist, Erik"]
[Result "0-1"]
[ECO "C88"]
[WhiteElo "2271"]
[BlackElo "2483"]
[Annotator "TA"]
[PlyCount "76"]
[EventDate "2024.10.03"]
[EventType "swiss"]
[EventCountry "NOR"]
[SourceTitle "playchess.com"]
[Source "ChessBase"]
[SourceQuality "1"]
[TimeControl "40/6000:2400+30"]

{[%evp 18,76,10,10,10,-8,-14,-29,-22,-15,-11,-20,-18,-41,-22,-107,-113,-241,-147,-284,-270,-270,-269,-270,-280,-291,-273,-278,-268,-272,-231,-218,23,21,190,-340,-366,-404,-409,-348,-65,-578,-530,-614,-600,-632,-595,-708,-711,-1060,-1070,-1062,-1052,-1973,-879,-905,-875,-905,-829,-839,-821]} 1. e4 {[%emt 0:01:05]} e5 {[%emt 0:00:00]} 2. Nf3 {[%emt 0:00:00]} Nc6 {[%emt 0:00:00]} 3. Bb5 {[%emt 0:00:00]} a6 {[%emt 0:00:00]} 4. Ba4 {[%emt 0:00:00]} Nf6 {[%emt 0:00:00]} 5. O-O {[%emt 0:00:00]} Be7 {[%emt 0:00:00]} 6. Re1 {[%emt 0:00:00]} b5 {[%emt 0:00:00]} 7. Bb3 {[%emt 0:00:00]} Bb7 {[%emt 0:00:00]} 8. d4 {[%emt 0:11:23]} Nxd4 {[%emt 0:00:00]} 9. Nxd4 {[%emt 0:16:21]} exd4 {[%emt 0:00:00]} 10. e5 {[%emt 0:00:49]} Ne4 {[%emt 0:00:00]} 11. Qf3 {[%emt 0:09:34][%csl Gb3][%cal Rf3f7]} (11. Qxd4 $2 Bc5 $19) 11... O-O {[%emt 0:00:00] Weiss muss nun ...d5 beachten.} 12. Rxe4 {[%emt 0:08:32]} c5 $1 {[%emt 0:00:00][%cal Oc5c4] Zielt auf ...c4! ab. Schwarz hat minimalen Vorteil.} 13. c4 {[%emt 0:11:54][%cal Ob1d2]} f5 $1 {[%emt 0:00:00]} 14. exf6 $1 {[%emt 0:00:10]} Bxf6 {[%emt 0:00:00] und nun wäre ...Kh8 stark für Schwarz.} 15. Nd2 {[%emt 0:16:14]} Kh8 {[%emt 0:01:43]} 16. Qh5 {[%emt 0:04:09] Gegen Bh4 gerichtet.} bxc4 $17 {[%emt 0:03:53]} 17. Bd1 {[%emt 0:05:25]} (17. Bxc4 $17 d5 18. Re1 dxc4 19. Nxc4) 17... c3 {[%emt 0:05:45]} 18. Bc2 {[%emt 0:05:48]} (18. Rf4 $17 cxd2 19. Bxd2) 18... g6 $19 {[%emt 0:01:46]} (18... cxd2 19. Bxd2 g6 (19... Bxe4 20. Bxe4 g6 21. Bxg6 $11) 20. Qh3 Bxe4 21. Bxe4 $19) 19. Qh3 {[%emt 0:01:43][%cal Oe4g4]} cxd2 {[%emt 0:08:07]} 20. Bxd2 {[%emt 0:00:00]} c4 {[%emt 0:00:07]} 21. Rg4 {[%emt 0:01:25]} d3 {[%emt 0:01:46]} 22. Ba4 {[%emt 0:00:46]} Bd5 {[%emt 0:30:33]} (22... Bxb2 23. Rb1 Rc8 24. Rxb2 $15) 23. Rxg6 {[%emt 0:00:56]} Be6 {[%emt 0:03:24]} 24. Qh6 {[%emt 0:00:47]} Bxb2 {[%emt 0:00:07]} (24... Bd4 $19 {[%cal Od8b6] Und ...Qb6! würde nun gewinnen.} 25. Be3 Be5 (25... Bxb2 26. Rb1 $17)) 25. Rb1 $1 $11 {[%emt 0:00:39]} Be5 {[%emt 0:00:00] [#]} (25... Qe8 $1 $11 {und Schwarz ist OK.} 26. Rxe6 Qxe6 27. Qxe6 (27. Rxb2 $2 Qxh6 28. Bxh6 Rfb8 $19) 27... dxe6 28. Rxb2 Rab8 29. Bc3+ Kg8) 26. Re1 $4 {[%emt 0:00:32][%mdl 8192] [#]} (26. Rxe6 $1 $18 {war der einzige Gewinnzug.} Rf6 (26... dxe6 $2 27. Rb7 $18) 27. Rxf6 (27. Rxe5 Rxh6 28. Bxh6 Qf6 $14) 27... Qxf6 28. Rb7 (28. Bxd7 c3 $18) (28. Qxf6+ Bxf6 29. Bxd7 Rd8 $18)) 26... Qb6 $1 $19 {[%emt 0:02:00]} 27. Be3 {[%emt 0:00:26]} (27. Rxe5 $2 Qxf2+ 28. Kh1 Qf1#) (27. Rf1 Qd4) 27... Qa5 {[%emt 0:07:43][%cal Ra5e1] Aktives Gegenspiel!} 28. Bd2 {[%emt 0:00:01]} c3 $2 $40 {[%emt 0:00:00][%mdl 128] Schwarz hat was vor.} (28... Qxa4 29. Rxe5 Rf7 30. Bc3 Qc2 31. Bd4 (31. Rexe6+ $2 Qxc3 32. h3 dxe6 $19) (31. Rexe6+ $2 Qxc3 32. Qe3 dxe6 $19)) ({Günstiger ist} 28... Qc5 $19 29. Be3 Qe7) 29. Rg5 $2 {[%emt 0:00:47][%mdl 8192]} (29. Rxe5 $1 $15 Qxe5 30. Qe3) 29... Rf5 {[%emt 0:03:25] Schwarz steht klar auf Gewinn.} (29... cxd2 $2 {geht unter.} 30. Rexe5 $18) ({Jedoch nicht} 29... Bf5 $2 30. Bf4 c2 (30... Bxf4 31. Qg7#) (30... Bf6 $2 31. Bb3 $18) 31. Bxe5+ $18) 30. Rxf5 {[%emt 0:00:00]} Bxf5 {[%emt 0:00:00]} 31. Bg5 {[%emt 0:00:00] Beabsichtigt Bf6+ und Matt.} Bg6 $1 {[%emt 0:00:00]} ({Lieber nicht} 31... Qxa4 32. Bf6+ Bxf6 33. Qxf6+ Kg8 34. Qxf5 $11) 32. Bb3 {[%emt 0:00:00]} d2 {[%emt 0:00:49]} 33. Rf1 {[%emt 0:00:00]} Bg7 {[%emt 0:00:00]} 34. Qh4 {[%emt 0:00:00]} c2 {[%emt 0:00:18]} 35. Bf6 {[%emt 0:00:00]} d1=Q {[%emt 0:01:17]} (35... c1=Q $142 36. g3 Qcc5) 36. Bxg7+ {[%emt 0:00:00]} Kxg7 {[%emt 0:00:00]} 37. Qe7+ {[%emt 0:00:00]} Kh6 {[%emt 0:00:00][%cal Od1f1] ( -> ...Qxf1+!)} 38. Qe3+ {[%emt 0:00:00]} Qg5 {[%emt 0:00:00] Gewichteter Fehlerwert: Weiß=0.95/Schwarz=0.62.  Verlustzug:     	Weiß=1     	Schwarz=1     Gewinn verpasst:   	Weiß=1     	Schwarz=2     Fehler:       	Weiß=3     	---        Ungenau:       	Weiß=1     	Schwarz=1     OK:         	Weiß=6     	Schwarz=7     Bester:       	Weiß=2     	Schwarz=2     Stark:        	Weiß=2     	Schwarz=2} 0-1

[Event "Fagernes GM Open Autumn 2024"]
[Site "Fagernes"]
[Date "2024.10.10"]
[Round "6.8"]
[White "Hillarp Persson, Tiger"]
[Black "Carlsson, Ludvig"]
[Result "1/2-1/2"]
[ECO "D33"]
[WhiteElo "2455"]
[BlackElo "2334"]
[Annotator "TA"]
[PlyCount "96"]
[EventDate "2024.10.03"]
[EventType "swiss"]
[EventCountry "NOR"]
[SourceTitle "playchess.com"]
[Source "ChessBase"]
[SourceQuality "1"]
[TimeControl "40/6000:2400+30"]

{[%evp 11,96,29,37,0,0,0,0,0,18,0,16,0,14,12,12,-23,-19,-20,0,0,0,-43,-35,-46,-37,-50,-53,-37,-37,-45,-21,-11,0,-15,0,-20,0,-35,-22,-32,0,-16,-9,-25,0,0,0,0,123,108,125,0,141,0,0,0,0,-21,0,-216,-180,-187,-187,-297,-133,-131,-123,-136,-62,-62,-58,-58,-58,-58,0,-58,-58,-58,-58,-58,-58,-58,-58,-58,-58,-58,0]} 1. c4 {[%emt 0:00:00]} c5 {[%emt 0:00:00]} 2. Nf3 {[%emt 0:00:00]} Nc6 {[%emt 0:00:00]} 3. Nc3 {[%emt 0:00:16]} e6 {[%emt 0:00:00]} 4. g3 {[%emt 0:00:44]} d5 {[%emt 0:00:00]} 5. cxd5 {[%emt 0:00:11]} exd5 {[%emt 0:00:00]} 6. d4 {[%emt 0:00:37]} Nf6 {[%emt 0:00:00]} 7. Be3 {[%emt 0:05:27]} c4 {[%emt 0:24:29]} 8. Bg5 {[%emt 0:10:46]} Be7 {[%emt 0:02:52]} 9. Bg2 {[%emt 0:01:32] Die Stellung ist ausgeglichen.} O-O {[%emt 0:00:00]} 10. O-O {[%emt 0:01:33]} Be6 {[%emt 0:05:03]} 11. e3 {[%emt 0:03:19]} h6 {[%emt 0:02:49]} 12. Bxf6 {[%emt 0:00:00]} Bxf6 {[%emt 0:00:00]} 13. Nd2 {[%emt 0:11:59] Wehrt b5 ab} Rc8 {[%emt 0:04:08]} 14. f4 {[%emt 0:16:14][%cal Bf2f4,Bf4f5,Bf5g6][%mdl 32] f5 ist eine echte Drohung.} Qd7 {[%emt 0:20:22]} 15. Nf3 {[%emt 0:18:20]} Be7 {[%emt 0:07:04]} 16. Qd2 {[%emt 0:02:37]} f6 {[%emt 0:04:57]} 17. Nh4 {[%emt 0:00:00]} Bb4 {[%emt 0:02:20]} 18. f5 {[%emt 0:02:20]} Bf7 {[%emt 0:00:05]} 19. g4 $1 {[%emt 0:04:26]} Rfe8 {[%emt 0:01:32]} 20. Bf3 {[%emt 0:02:00]} Re7 {[%emt 0:06:08]} 21. Rae1 {[%emt 0:01:21]} Rce8 {[%emt 0:00:00]} 22. Ng6 {[%emt 0:00:57]} Bxg6 {[%emt 0:00:31]} 23. fxg6 {[%emt 0:00:00]} Re6 {[%emt 0:03:26]} 24. h4 {[%emt 0:02:18]} (24. Bxd5 $2 {zu gefräßig.} Qxd5 25. h3 Qg5 $19) 24... Ne7 {[%emt 0:00:00]} 25. h5 {[%emt 0:00:00]} Qd6 {[%emt 0:01:45]} 26. Qg2 {[%emt 0:00:00]} Rd8 {[%emt 0:00:00]} 27. Kh1 {[%emt 0:02:37]} a6 {[%emt 0:00:54]} 28. e4 {[%emt 0:02:13]} dxe4 {[%emt 0:02:26]} 29. Nxe4 {[%emt 0:03:48]} Qxd4 {[%emt 0:05:48]} (29... Qb6 $11 30. Rd1 Nd5) 30. Rd1 $16 {[%emt 0:00:10]} Qb6 {[%emt 0:00:00]} 31. Rxd8+ {[%emt 0:01:39]} Qxd8 {[%emt 0:00:00]} 32. Rd1 {[%emt 0:00:00]} (32. a3 $1 $16 {[%cal Ra3b4]} Ba5 33. Nc5) 32... Qc7 $11 {[%emt 0:00:00]} 33. a3 {[%emt 0:00:00]} Ba5 {[%emt 0:00:00]} 34. Ng3 {[%emt 0:01:50][%cal Of3d5] Und Bd5! würde nun gewinnen.} Re3 {[%emt 0:00:00]} 35. Nf5 $2 {[%emt 0:00:08]} (35. Nf1 $1 $11 Rd3 36. Rxd3 cxd3 37. b4) 35... Nxf5 $19 {[%emt 0:00:00]} 36. gxf5 {[%emt 0:00:00]} Kf8 {[%emt 0:00:00]} 37. Qg4 {[%emt 0:00:00] [#] Lässt Qf4 nicht zu} (37. Bg4 $142) 37... b5 {[%emt 0:00:37]} (37... Qc5 $1 $19 {Und jetzt ...Bc7 wäre schön.} 38. a4 Bc7) 38. Kg2 $17 {[%emt 0:00:01]} Bb6 {[%emt 0:00:59] Verhindert Qd4.} ({Finger weg von} 38... Qe5 39. Qd4 $15) 39. Qg3 {[%emt 0:00:02]} Qxg3+ {[%emt 0:00:14]} (39... Ke7 $17 40. Qxc7+ Bxc7) 40. Kxg3 $15 {[%emt 0:00:00]} Rd3 {[%emt 0:00:00]} 41. Rxd3 {[%emt 0:41:01]} cxd3 {[%emt 0:40:32][%mdl 4096] Endspiel. KB-KB} 42. Kf4 {[%emt 0:00:11] [#]} b4 {[%emt 0:00:53]} 43. Ke4 {[%emt 0:00:00]} ({Besser ist} 43. axb4 $11 Ke7 44. Ke4) 43... bxa3 {[%emt 0:00:00] Schwarz steht etwas besser.} 44. bxa3 {[%emt 0:00:00]} d2 {[%emt 0:00:00]} 45. Kd5 {[%emt 0:00:00]} a5 {[%emt 0:00:00]} 46. a4 {[%emt 0:00:00]} Bg1 {[%emt 0:00:00]} 47. Bd1 {[%emt 0:00:00]} Bf2 {[%emt 0:00:00]} 48. Ke6 {[%emt 0:00:00]} Bg1 {[%emt 0:00:00] Gewichteter Fehlerwert: Weiß=0.23 (präzise) /Schwarz=0.19 (sehr präzise) .  Verlustzug:     	Weiß=1     	---        Gewinn verpasst:   	---       	Schwarz=1     Fehler:       	Weiß=3     	Schwarz=4     Ungenau:       	Weiß=3     	Schwarz=2     OK:         	Weiß=13    	Schwarz=9     Bester:       	Weiß=2     	Schwarz=6     Stark:        	Weiß=1     	---} ({Günstiger ist} 48... Bc5 $15) 1/2-1/2

[Event "Fagernes GM Open Autumn 2024"]
[Site "Fagernes"]
[Date "2024.10.10"]
[Round "6.9"]
[White "Bhagat Kush"]
[Black "Aizenberg, Benny"]
[Result "0-1"]
[ECO "B40"]
[WhiteElo "2245"]
[BlackElo "2423"]
[Annotator "TA"]
[PlyCount "114"]
[EventDate "2024.10.03"]
[EventType "swiss"]
[EventCountry "NOR"]
[SourceTitle "playchess.com"]
[Source "ChessBase"]
[SourceQuality "1"]
[TimeControl "40/6000:2400+30"]

{[%evp 9,114,9,4,4,9,7,0,0,16,14,5,0,83,44,22,9,24,-28,64,-16,-18,0,0,0,-7,-6,-14,-4,-9,-54,-51,-102,-85,-105,-97,-96,-96,-128,-127,-123,-125,-137,-129,-134,-133,-142,-143,-153,-166,-154,-116,-143,-131,-189,-168,-168,-175,-164,-125,-156,-78,-70,-77,-72,-77,-82,-84,-81,-89,-195,-194,-221,-235,-278,-279,-269,-246,-384,-424,-483,-431,-377,-328,-529,-491,-605,-574,-1983,-1778,-2347,-1772,-5608,-4714,-29972,-29972,-29966,-12512,-29979,-29980,-29979,-29978,-29978,-29979,-29979,-29980,-29980,-29981]} 1. e4 {[%emt 0:01:35]} c5 {[%emt 0:00:00]} 2. Nf3 {[%emt 0:00:00]} e6 {[%emt 0:00:00]} 3. b3 {[%emt 0:00:00]} a6 {[%emt 0:00:00]} 4. c4 {[%emt 0:00:44]} Nc6 {[%emt 0:00:00]} 5. Bb2 {[%emt 0:00:00]} Qc7 {[%emt 0:00:00]} 6. g3 {[%emt 0:00:00]} Nf6 {[%emt 0:00:00]} 7. e5 {[%emt 0:00:00]} Ng4 {[%emt 0:00:00][%cal Rg4e5]} 8. Bg2 {[%emt 0:00:00] The position is equal.} Be7 {[%emt 0:06:57][%cal Rg4e5]} 9. O-O {[%emt 0:00:00]} O-O {[%emt 0:00:00]} 10. Re1 {[%emt 0:04:11]} b5 {[%emt 0:06:04]} (10... Rd8 $11) 11. cxb5 {[%emt 0:21:19]} axb5 {[%emt 0:00:00]} 12. d4 {[%emt 0:02:19] aiming for d5.} Bb7 {[%emt 0:29:41]} 13. Nc3 {[%emt 0:17:24]} (13. h3 $142 Nh6 14. d5 exd5 15. Nc3) 13... b4 {[%emt 0:05:16]} (13... cxd4 $11 14. Nxb5 Qb6 15. Nfxd4 Nxf2 (15... Ncxe5 16. Bxb7 Qxb7 17. h3 $16) (15... Ngxe5 16. Nxc6 Nxc6 17. Nd6 $16) 16. Kxf2 Bc5 (16... Nxd4 $2 17. Nxd4 f6 18. Kg1 $18)) 14. Nb5 {[%emt 0:00:35]} (14. Na4 $1 $14) 14... Qb6 $11 {[%emt 0:01:01]} 15. Nd6 {[%emt 0:04:36]} Bxd6 {[%emt 0:00:59]} 16. exd6 {[%emt 0:00:00]} cxd4 {[%emt 0:05:22][%cal Od4d3]} 17. h3 {[%emt 0:10:16]} Nf6 {[%emt 0:00:52]} 18. Nxd4 {[%emt 0:03:16]} Nd8 {[%emt 0:01:09][%cal Ob7g2]} 19. Nc2 {[%emt 0:09:50]} Bxg2 {[%emt 0:01:40]} 20. Kxg2 {[%emt 0:01:42]} (20. Bxf6 $15 Bxh3 21. Be7) 20... Nd5 $17 {[%emt 0:01:11][%cal Of7f6]} 21. Ne3 {[%emt 0:01:34]} Nxe3+ {[%emt 0:01:06]} 22. Rxe3 {[%emt 0:00:33]} f6 {[%emt 0:00:00]} 23. Qd2 {[%emt 0:12:08]} Nc6 {[%emt 0:02:39]} 24. Re4 {[%emt 0:00:29]} Ra5 {[%emt 0:00:09]} 25. Qc2 {[%emt 0:01:16]} Qc5 {[%emt 0:04:29]} 26. Qxc5 {[%emt 0:01:30]} Rxc5 {[%emt 0:00:00]} 27. a3 {[%emt 0:01:38]} Rc2 {[%emt 0:02:02]} 28. Rb1 {[%emt 0:00:00]} bxa3 {[%emt 0:02:08]} 29. Bxa3 {[%emt 0:00:00]} Kf7 {[%emt 0:00:07]} 30. b4 {[%emt 0:01:45]} Ra8 {[%emt 0:01:21]} 31. Re3 {[%emt 0:00:00]} (31. Rc1 $17 Rxc1 32. Bxc1) 31... Ne5 {[%emt 0:00:00] Threatens to win with ...Nc4.} 32. Rc1 {[%emt 0:00:00] [#]} Rxc1 {[%emt 0:00:57]} 33. Bxc1 $19 {[%emt 0:00:00][%mdl 4096] Endgame. KRB-KRN} Rb8 {[%emt 0:00:00]} 34. Rb3 {[%emt 0:00:00]} Rb5 {[%emt 0:00:40]} (34... Nc6 $142 35. Bd2 (35. b5 $2 Nd4 $19) 35... e5 (35... Rb5 $2 36. Ra3 $19)) 35. Be3 $17 {[%emt 0:00:00]} Nc6 {[%emt 0:00:00]} 36. Bc5 {[%emt 0:00:00]} e5 {[%emt 0:00:00]} 37. f4 {[%emt 0:00:21]} Ke6 {[%emt 0:00:00]} 38. fxe5 {[%emt 0:00:00]} fxe5 {[%emt 0:00:00]} 39. Rb2 {[%emt 0:00:00]} (39. g4 $17 {might work better.}) 39... Nd8 $19 {[%emt 0:00:18]} 40. Rf2 {[%emt 0:00:06]} Nb7 {[%emt 0:00:58][%csl LRc5,LRd6]} 41. Rf8 {[%emt 0:03:03]} Nxc5 {[%emt 0:02:10]} ({Weaker is} 41... Nxd6 42. Bxd6 Kxd6 43. Rf7 $17) 42. bxc5 {[%emt 0:00:22]} Rxc5 {[%emt 0:00:04][%cal Og7g6] KR-KR} 43. Rg8 {[%emt 0:00:14]} (43. h4 $142) 43... g6 {[%emt 0:07:47]} ({Less strong is} 43... Kxd6 44. Rxg7 Rc2+ 45. Kf3 $15) 44. Rg7 {[%emt 0:01:43]} Kxd6 {[%emt 0:01:48]} 45. Rxh7 {[%emt 0:00:24]} e4 {[%emt 0:00:50]} 46. Kf2 $2 {[%emt 0:01:19]} (46. g4 g5 47. h4) 46... Rc3 {[%emt 0:00:05] ...Rf3+ is the strong threat.} 47. Rg7 {[%emt 0:01:25]} Rf3+ {[%emt 0:00:06]} 48. Kg2 {[%emt 0:00:03]} Rf6 {[%emt 0:00:06] Strongly threatening ...e3.} 49. g4 {[%emt 0:00:08]} e3 {[%emt 0:00:22]} 50. Rg8 {[%emt 0:00:14]} Ke5 {[%emt 0:00:13]} 51. g5 {[%emt 0:00:26]} Rf2+ {[%emt 0:02:32]} 52. Kg3 {[%emt 0:01:36]} Rf5 {[%emt 0:00:03] ( -> ...Ke4)} 53. Kg4 {[%emt 0:04:06]} Ke4 {[%emt 0:00:15] Black mates.} 54. Re8+ {[%emt 0:02:03]} Re5 {[%emt 0:00:31]} 55. Rxe5+ {[%emt 0:00:29]} Kxe5 {[%emt 0:00:05]} 56. Kf3 {[%emt 0:00:02]} Kf5 {[%emt 0:00:13]} 57. h4 {[%emt 0:00:05] [#]} e2 $1 {[%emt 0:00:05][%mdl 512] Weighted Error Value: White=0.82/Black=0.11 (very precise) .  Mistake:       	White=7     	Black=3      Inaccurate:     	White=5     	---        OK:         	White=8     	Black=14     Best:        	White=1     	Black=10} 0-1